fUSD/lending_fUSD_20240329
["ID","MTS","AMOUNT","RATE_DAILY","PERIOD"]
[321006645,1711743063746,-500.0,0.00052328,120]
[321006646,1711743063763,-500.0,0.00052328,120]
[321006647,1711743063777,-500.0,0.00052328,120]
[321006648,1711743063786,-875.16,0.00052328,120]
[321006649,1711743063795,-500.0,0.00052328,120]
[321006650,1711743063804,-500.0,0.00052328,120]
[321006651,1711743063814,-500.0,0.00052328,120]
[321006652,1711743063823,-500.0,0.00052328,120]
[321006653,1711743063833,-500.0,0.00052328,120]
[321006654,1711743063842,-500.0,0.00052328,120]
[321006655,1711743063852,-514.32,0.00052328,120]
[321006656,1711743063860,-500.0,0.00052328,120]
[321006657,1711743063869,-500.0,0.00052328,120]
[321006658,1711743063878,-500.0,0.00052328,120]
[321006659,1711743063887,-500.0,0.00052328,120]
[321006660,1711743063896,-198.411496,0.00052328,120]
[321006661,1711743063905,-500.0,0.00052328,120]
[321006662,1711743063913,-500.0,0.00052328,120]
[321006663,1711743063931,-591.94,0.00052328,120]
[321006664,1711743063950,-500.0,0.00052328,120]
[321006665,1711743063964,-500.0,0.00052328,120]
[321006666,1711743063973,-198.411496,0.00052328,120]
[321006667,1711743063983,-500.0,0.00052328,120]
[321006668,1711743063992,-500.0,0.00052328,120]
[321006669,1711743064001,-513.44793086,0.00052328,120]
[321006670,1711743064011,-500.0,0.00052328,120]
[321006671,1711743064020,-500.0,0.00052328,120]
[321006672,1711743064029,-520.34220018,0.00052328,120]
[321006673,1711743064038,-500.0,0.00052328,120]
[321006674,1711743064048,-500.0,0.00052328,120]
[321006675,1711743064057,-500.0,0.00052328,120]
[321006676,1711743064066,-500.0,0.00052328,120]
[321006677,1711743064075,-500.0,0.00052328,120]
[321006678,1711743064084,-500.0,0.00052328,120]
[321006679,1711743064094,-585.45,0.00052328,2]
[321006680,1711743064103,-500.0,0.00052328,120]
[321006681,1711743064112,-512.33741679,0.00052328,120]
[321006682,1711743064121,-2237.67,0.00052328,120]
[321006683,1711743064130,-500.0,0.00052328,120]
[321006684,1711743064139,-500.0,0.00052328,120]
[321006685,1711743064149,-583.33,0.00052328,120]
[321006686,1711743064158,-500.0,0.00052328,120]
[321006687,1711743064167,-1416.86,0.00052328,120]
[321006688,1711743064177,-500.0,0.00052328,120]
[321006689,1711743064187,-4471.83,0.00052328,120]
[321006690,1711743064196,-500.0,0.00052328,120]
[321006691,1711743064205,-500.0,0.00052328,120]
[321006692,1711743064215,-500.0,0.00052328,120]
[321006693,1711743064225,-500.0,0.00052328,120]
[321006694,1711743064235,-500.0,0.00052328,120]
[321006695,1711743064244,-500.0,0.00052328,120]
[321006696,1711743064254,-557.16,0.00052328,120]
[321006697,1711743064264,-500.0,0.00052328,120]
[321006698,1711743064274,-500.0,0.00052328,120]
[321006699,1711743064284,-762.04,0.00052328,120]
[321006700,1711743064293,-500.0,0.00052328,120]
[321006701,1711743064303,-2221.11,0.00052328,120]
[321006702,1711743064313,-500.0,0.00052328,120]
[321006703,1711743064323,-3766.78,0.00052328,120]
[321006704,1711743064333,-500.0,0.00052328,120]
[321006705,1711743064342,-598.35,0.00052328,120]
[321006706,1711743064352,-511.43,0.00052328,120]
[321006707,1711743064362,-500.0,0.00052328,120]
[321006708,1711743064371,-525.25053898,0.00052328,120]
[321006709,1711743064380,-2235.61,0.00052328,120]
[321006710,1711743064390,-500.0,0.00052328,120]
[321006711,1711743064400,-780.71,0.00052328,120]
[321006712,1711743064410,-1178.74,0.00052328,120]
[321006713,1711743064554,-500.0,0.00052328,120]
[321006714,1711743064564,-556.61,0.00052328,120]
[321006715,1711743064574,-500.0,0.00052328,120]
[321006716,1711743064583,-500.0,0.00052328,120]
[321006717,1711743064592,-500.0,0.00052328,120]
[321006718,1711743064602,-446.956826,0.00052328,120]
[321006719,1711743064611,-151.0,0.00052328,120]
[321006720,1711743064620,-500.0,0.00052328,120]
[321006721,1711743064629,-500.0,0.00052328,120]
[321006722,1711743064639,-500.0,0.00052328,120]
[321006723,1711743064648,-446.956826,0.00052328,120]
[321006724,1711743064657,-619.5,0.00052328,120]
[321006725,1711743064666,-500.0,0.00052328,120]
[321006726,1711743064676,-629.04,0.00052328,120]
[321006727,1711743064685,-500.0,0.00052328,120]
[321006728,1711743064694,-3138.6,0.00052328,120]
[321006729,1711743064705,-2852.03,0.00052328,120]
[321006730,1711743064714,-8058.65,0.00052328,120]
[321006731,1711743064723,-500.0,0.00052328,120]
[321006732,1711743064732,-500.0,0.00052328,120]
[321006733,1711743064741,-500.0,0.00052328,120]
[321006734,1711743064750,-500.0,0.00052328,120]
[321006735,1711743064759,-500.0,0.00052328,120]
[321006736,1711743064769,-500.0,0.00052328,120]
[321006737,1711743064778,-500.0,0.00052328,120]
[321006738,1711743064787,-646.56,0.00052328,120]
[321006739,1711743064796,-500.0,0.00052328,120]
[321006740,1711743064805,-630.23,0.00052328,120]
[321006741,1711743064814,-500.0,0.00052328,120]
[321006742,1711743064824,-296.76964196,0.00052328,120]
[321006743,1711743064833,-2086.46,0.00052328,120]
[321006744,1711743064842,-756.48,0.00052328,120]
[321006745,1711743064851,-500.0,0.00052328,120]
[321006746,1711743064861,-500.0,0.00052328,120]
[321006747,1711743064870,-261.89702048,0.00052328,120]
[321006748,1711743064879,-1381.85,0.00052328,120]
[321006749,1711743064888,-1786.25,0.00052328,120]
[321006750,1711743064898,-616.38229193,0.00052328,120]
[321006751,1711743064909,-500.0,0.00052328,120]
[321006752,1711743064918,-1037.49,0.00052328,120]
[321006753,1711743064928,-500.0,0.00052328,120]
[321006754,1711743064938,-5491.84,0.00052328,120]
[321006755,1711743064948,-500.0,0.00052328,120]
[321006756,1711743064958,-500.0,0.00052328,120]
[321006757,1711743064967,-500.0,0.00052328,120]
[321006758,1711743064977,-4044.9,0.00052328,120]
[321006759,1711743064987,-500.0,0.00052328,120]
[321006760,1711743064997,-500.0,0.00052328,120]
[321006761,1711743065006,-963.3,0.00052328,120]
[321006762,1711743065018,-500.0,0.00052328,120]
[321006763,1711743065027,-500.0,0.00052328,120]
[321006764,1711743065037,-151.0,0.00052328,120]
[321006765,1711743065047,-2228.41,0.00052328,120]
[321006766,1711743065057,-500.0,0.00052328,120]
[321006767,1711743065067,-396.5423007,0.00052328,120]
[321006768,1711743065077,-1266.86,0.00052328,120]
[321006769,1711743065087,-404.91011011,0.00052328,120]
[321006770,1711743065097,-2742.97,0.00052328,120]
[321006771,1711743065108,-500.0,0.00052328,120]
[321006772,1711743065118,-500.0,0.00052328,120]
[321006773,1711743065129,-500.0,0.00052328,120]
[321006774,1711743065139,-256.98216944,0.00052328,120]
[321006775,1711743065149,-1695.14,0.00052328,120]
[321006776,1711743065160,-1156.36,0.00052328,120]
[321006777,1711743065170,-500.0,0.00052328,120]
[321006778,1711743065181,-3243.98,0.00052328,120]
[321006779,1711743065191,-500.0,0.00052328,120]
[321006780,1711743065201,-500.0,0.00052328,120]
[321006781,1711743065210,-1005.14549052,0.00052328,14]
[321006782,1711743065220,-3781.4,0.00052328,120]
[321006783,1711743065236,-500.0,0.00052328,120]
[321006784,1711743065295,-500.0,0.00052328,120]
[321006785,1711743065305,-1170.04,0.00052328,120]
[321006786,1711743065315,-500.0,0.00052328,120]
[321006787,1711743065324,-500.0,0.00052328,120]
[321006788,1711743065334,-500.0,0.00052328,120]
[321006789,1711743065344,-996.14,0.00052328,120]
[321006790,1711743065353,-659.08,0.00052328,120]
[321006791,1711743065363,-500.0,0.00052328,120]
[321006792,1711743065372,-500.0,0.00052328,120]
[321006793,1711743065381,-500.0,0.00052328,120]
[321006794,1711743065391,-500.0,0.00052328,7]
[321006795,1711743065401,-151.0,0.00052328,120]
[321006796,1711743065411,-4977.0,0.00052328,120]
[321006797,1711743065420,-500.0,0.00052328,120]
[321006798,1711743065429,-500.0,0.00052328,120]
[321006799,1711743065438,-500.0,0.00052328,120]
[321006800,1711743065447,-500.0,0.00052328,120]
[321006801,1711743065456,-500.0,0.00052328,120]
[321006802,1711743065466,-3890.35,0.00052328,120]
[321006803,1711743065476,-784.3,0.00052328,120]
[321006804,1711743065485,-657.95,0.00052328,120]
[321006805,1711743065495,-500.0,0.00052328,120]
[321006806,1711743065504,-3045.62,0.00052328,120]
[321006807,1711743065513,-500.0,0.00052328,120]
[321006808,1711743065523,-500.0,0.00052328,120]
[321006809,1711743065533,-500.0,0.00052328,120]
[321006810,1711743065543,-500.0,0.00052328,120]
[321006811,1711743065552,-500.0,0.00052328,120]
[321006812,1711743065562,-500.0,0.00052328,120]
[321006813,1711743065572,-500.0,0.00052328,120]
[321006814,1711743065581,-762.49,0.00052328,120]
[321006815,1711743065591,-511.52518678,0.00052328,120]
[321006816,1711743065600,-713.8,0.00052328,120]
[321006817,1711743065610,-500.0,0.00052328,120]
[321006818,1711743065620,-876.73,0.00052328,120]
[321006819,1711743065631,-500.0,0.00052328,120]
[321006820,1711743065640,-500.0,0.00052328,120]
[321006821,1711743065651,-500.0,0.00052328,120]
[321006822,1711743065660,-3322.87,0.00052328,120]
[321006823,1711743065671,-975.43,0.00052328,120]
[321006824,1711743065682,-229.00538193,0.00052328,120]
[321006825,1711743065693,-500.0,0.00052328,120]
[321006826,1711743065702,-500.0,0.00052328,120]
[321006827,1711743065712,-500.0,0.00052328,120]
[321006828,1711743065722,-500.0,0.00052328,120]
[321006829,1711743065731,-500.0,0.00052328,120]
[321006830,1711743065741,-1010.8,0.00052328,120]
[321006831,1711743065751,-500.0,0.00052328,120]
[321006832,1711743065760,-1101.95,0.00052328,120]
[321006833,1711743065769,-641.9,0.00052328,120]
[321006835,1711743065779,-500.0,0.00052328,120]
[321006836,1711743065788,-500.0,0.00052328,120]
[321006837,1711743065798,-246.445783,0.00052328,120]
[321006838,1711743065808,-500.0,0.00052328,120]
[321006839,1711743065818,-5674.68,0.00052328,120]
[321006840,1711743065828,-500.0,0.00052328,120]
[321006841,1711743065838,-500.0,0.00052328,120]
[321006842,1711743065849,-500.0,0.00052328,120]
[321006843,1711743065859,-500.0,0.00052328,120]
[321006844,1711743065869,-500.0,0.00052328,120]
[321006845,1711743065879,-958.84,0.00052328,120]
[321006846,1711743065889,-1101.21,0.00052328,120]
[321006847,1711743065899,-1619.59,0.00052328,120]
[321006848,1711743065908,-500.0,0.00052328,120]
[321006849,1711743065918,-500.0,0.00052328,120]
[321006850,1711743065928,-608.38,0.00052328,120]
[321006851,1711743065941,-2497.904685,0.00052328,120]
[321006852,1711743065952,-1270.9,0.00052328,120]
[321006853,1711743065962,-500.0,0.00052328,120]
[321006854,1711743065974,-500.0,0.00052328,120]
[321006855,1711743065985,-2497.904685,0.00052328,120]
[321006856,1711743065996,-1001.79,0.00052328,120]
[321006857,1711743066006,-151.0,0.00052328,120]
[321006858,1711743066017,-500.0,0.00052328,120]
[321006859,1711743066027,-529.06877694,0.00052328,120]
[321006860,1711743066038,-704.57,0.00052328,120]
[321006861,1711743066048,-1109.94,0.00052328,120]
[321006862,1711743066058,-500.0,0.00052328,120]
[321006863,1711743066068,-500.0,0.00052328,120]
[321006864,1711743066078,-966.68,0.00052328,120]
[321006865,1711743066088,-522.66805747,0.00052328,120]
[321006866,1711743066099,-500.0,0.00052328,120]
[321006867,1711743066109,-500.0,0.00052328,120]
[321006868,1711743066120,-500.0,0.00052328,120]
[321006869,1711743066131,-863.63,0.00052328,120]
[321006870,1711743066141,-763.79,0.00052328,120]
[321006871,1711743066151,-896.89,0.00052328,120]
[321006872,1711743066161,-500.0,0.00052328,120]
[321006873,1711743066172,-1827.42,0.00052328,120]
[321006874,1711743066183,-1672.3,0.00052328,120]
[321006875,1711743066194,-500.0,0.00052328,120]
[321006876,1711743066205,-500.0,0.00052328,120]
[321006877,1711743066216,-524.55983495,0.00052328,120]
[321006878,1711743066226,-3729.29,0.00052328,120]
[321006879,1711743066237,-151.0,0.00052328,120]
[321006880,1711743066248,-3188.94,0.00052328,120]
[321006881,1711743066258,-500.0,0.00052328,120]
[321006882,1711743066268,-740.79,0.00052328,120]
[321006883,1711743066279,-1494.43,0.00052328,120]
[321006884,1711743066289,-500.0,0.00052328,120]
[321006885,1711743066298,-500.0,0.00052328,120]
[321006886,1711743066308,-2612.0,0.00052328,120]
[321006887,1711743066318,-7249.51,0.00052328,120]
[321006888,1711743066328,-500.0,0.00052328,120]
[321006889,1711743066339,-500.0,0.00052328,120]
[321006890,1711743066349,-500.0,0.00052328,120]
[321006891,1711743066359,-515.36278248,0.00052328,120]
[321006892,1711743066369,-843.2,0.00052328,120]
[321006893,1711743066379,-2680.51,0.00052328,120]
[321006894,1711743066390,-500.0,0.00052328,120]
[321006895,1711743066400,-4459.43,0.00052328,120]
[321006896,1711743066410,-500.0,0.00052328,120]
[321006897,1711743066420,-500.0,0.00052328,120]
[321006898,1711743066431,-500.0,0.00052328,120]
[321006899,1711743066441,-1947.08,0.00052328,120]
[321006900,1711743066451,-3624.86,0.00052328,120]
[321006901,1711743066460,-524.063777,0.00052328,120]
[321006902,1711743066470,-2027.87,0.00052328,120]
[321006903,1711743066480,-1617.65,0.00052328,120]
[321006904,1711743066490,-500.0,0.00052328,120]
[321006905,1711743066500,-1765.5,0.00052328,120]
[321006906,1711743066510,-1764.1,0.00052328,120]
[321006907,1711743066520,-500.0,0.00052328,120]
[321006908,1711743066529,-500.0,0.00052328,120]
[321006909,1711743066539,-957.9,0.00052328,120]
[321006910,1711743066549,-10351.89,0.00052328,120]
[321006911,1711743066559,-13296.96,0.00052328,120]
[321006912,1711743066569,-517.98,0.00052328,120]
[321006913,1711743066579,-1873.21,0.00052328,120]
[321006914,1711743066589,-500.0,0.00052328,120]
[321006915,1711743066599,-504.78,0.00052328,120]
[321006916,1711743066609,-2418.2,0.00052328,120]
[321006917,1711743066619,-2461.01,0.00052328,120]
[321006918,1711743066628,-500.0,0.00052328,120]
[321006919,1711743066637,-2944.8,0.00052328,120]
[321006920,1711743066646,-500.0,0.00052328,120]
[321006921,1711743066656,-1607.86,0.00052328,120]
[321006922,1711743066665,-500.0,0.00052328,120]
[321006923,1711743066675,-513.72944863,0.00052328,120]
[321006924,1711743066686,-515.73160176,0.00052328,120]
[321006925,1711743066696,-500.0,0.00052328,120]
[321006926,1711743066706,-308.40172798,0.00052328,120]
[321006927,1711743066715,-500.0,0.00052328,120]
[321006928,1711743066724,-500.0,0.00052328,120]
[321006929,1711743066734,-3103.51,0.00052328,120]
[321006930,1711743066743,-500.0,0.00052328,120]
[321006931,1711743066752,-500.0,0.00052328,80]
[321006932,1711743066761,-500.0,0.00052328,120]
[321006933,1711743066769,-500.0,0.00052328,120]
[321006934,1711743066779,-522.27429923,0.00052328,120]
[321006935,1711743066788,-2940.12,0.00052328,120]
[321006936,1711743066797,-500.0,0.00052328,120]
[321006937,1711743066805,-4477.27,0.00052328,120]
[321006938,1711743066814,-1003.91,0.00052328,120]
[321006939,1711743066823,-500.0,0.00052328,120]
[321006940,1711743066832,-500.0,0.00052328,120]
[321006941,1711743066842,-782.17,0.00052328,120]
[321006942,1711743066851,-500.0,0.00052328,120]
[321006943,1711743066860,-500.0,0.00052328,120]
[321006944,1711743066869,-910.45,0.00052328,120]
[321006945,1711743066878,-2328.02,0.00052328,120]
[321006946,1711743066887,-500.0,0.00052328,120]
[321006947,1711743066896,-1584.87,0.00052328,120]
[321006948,1711743066905,-500.0,0.00052328,120]
[321006949,1711743067044,-608.2,0.00052328,120]
[321006950,1711743067054,-500.0,0.00052328,120]
[321006951,1711743067063,-340.85484526,0.00052328,120]
[321006952,1711743067072,-594.05,0.00052328,120]
[321006953,1711743067082,-995.82,0.00052328,120]
[321006954,1711743067091,-611.38,0.00052328,120]
[321006955,1711743067100,-500.0,0.00052328,120]
[321006956,1711743067109,-500.0,0.00052328,120]
[321006957,1711743067118,-571.66,0.00052328,120]
[321006958,1711743067128,-1818.27,0.00052328,120]
[321006959,1711743067137,-529.71758758,0.00052328,120]
[321006960,1711743067147,-4183.91,0.00052328,120]
[321006961,1711743067155,-500.0,0.00052328,120]
[321006962,1711743067165,-500.0,0.00052328,120]
[321006963,1711743067174,-4365.84,0.00052328,21]
[321006964,1711743067184,-152.69955499,0.00052328,120]
[321006965,1711743067193,-500.0,0.00052328,120]
[321006966,1711743067202,-500.0,0.00052328,120]
[321006967,1711743067212,-500.0,0.00052328,120]
[321006968,1711743067222,-500.0,0.00052328,120]
[321006969,1711743067231,-1348.38,0.00052328,120]
[321006970,1711743067240,-854.64,0.00052328,120]
[321006971,1711743067249,-500.0,0.00052328,120]
[321006972,1711743067259,-1373.05,0.00052328,120]
[321006973,1711743067269,-1920.43,0.00052328,120]
[321006974,1711743067278,-500.0,0.00052328,120]
[321006975,1711743067288,-548.39,0.00052328,120]
[321006976,1711743067297,-4841.11,0.00052328,120]
[321006977,1711743067306,-500.0,0.00052328,120]
[321006978,1711743067316,-160.581668,0.00052328,45]
[321006979,1711743067325,-1532.21,0.00052328,120]
[321006980,1711743067334,-160.581668,0.00052328,45]
[321006981,1711743067344,-500.0,0.00052328,120]
[321006982,1711743067353,-500.0,0.00052328,120]
[321006983,1711743067363,-151.0,0.00052328,30]
[321006984,1711743067372,-151.0,0.00052328,30]
[321006985,1711743067382,-3978.71,0.00052328,120]
[321006986,1711743067391,-160.581668,0.00052328,45]
[321006987,1711743067401,-160.581668,0.00052328,45]
[321006988,1711743067410,-4048.81,0.00052328,120]
[321006989,1711743067420,-500.0,0.00052328,120]
[321006990,1711743067429,-500.0,0.00052328,120]
[321006991,1711743067441,-500.0,0.00052328,60]
[321006992,1711743067451,-500.0,0.00052328,120]
[321006993,1711743067461,-500.0,0.00052328,120]
[321006994,1711743067471,-623.73,0.00052328,120]
[321006995,1711743067481,-170.44730902,0.00052328,120]
[321006996,1711743067491,-10194.33,0.00052328,120]
[321006997,1711743067502,-498.0,0.00052328,2]
[321006998,1711743067511,-817.33,0.00052328,120]
[321006999,1711743067521,-500.0,0.00052328,120]
[321007000,1711743067531,-548.73,0.00052328,120]
[321007001,1711743067542,-3430.93,0.00052328,120]
[321007002,1711743067552,-500.0,0.00052328,120]
[321007003,1711743067563,-500.0,0.00052328,120]
[321007004,1711743067572,-500.0,0.00052328,2]
[321007005,1711743067583,-388.124049,0.00052328,120]
[321007006,1711743067592,-1097.14,0.00052328,120]
[321007007,1711743067602,-500.0,0.00052328,120]
[321007008,1711743067612,-388.124049,0.00052328,120]
[321007009,1711743067621,-500.0,0.00052328,120]
[321007010,1711743067630,-500.0,0.00052328,120]
[321007011,1711743067639,-748.48,0.00052328,120]
[321007012,1711743067649,-640.024298,0.00052332,60]
[321007013,1711743067659,-640.024298,0.00052332,60]
[321007014,1711743067667,-198.411496,0.00052332,120]
[321007015,1711743067677,-198.411496,0.00052332,120]
[321007016,1711743067688,-446.956826,0.00052332,120]
[321007017,1711743067697,-151.0,0.00052332,120]
[321007018,1711743067706,-446.956835,0.00052332,120]
[321007019,1711743067716,-151.0,0.00052332,120]
[321007020,1711743067725,-152.886991,0.00052332,120]
[321007021,1711743067734,-2497.904685,0.00052332,120]
[321007022,1711743067743,-2497.904685,0.00052332,120]
[321007023,1711743067752,-224.197202,0.00052332,120]
[321007024,1711743067761,-151.0,0.00052332,120]
[321007025,1711743067771,-150.0,0.00052335,7]
[321007026,1711743067780,-150.0,0.00052338,7]
[321007027,1711743067789,-150.0,0.0005234,7]
[321007028,1711743067798,-150.0,0.00052341,7]
[321007029,1711743067807,-1500.0,0.00052343,7]
[321007030,1711743067816,-150.0,0.00052344,7]
[321007031,1711743067825,-150.0,0.00052374,7]
[321007032,1711743067834,-150.0,0.00052391,7]
[321007033,1711743067843,-1500.0,0.00052394,7]
[321007034,1711743067852,-150.0,0.00052407,7]
[321007035,1711743067861,-150.0,0.00052411,7]
[321007036,1711743067870,-150.0,0.00052424,120]
[321007037,1711743067879,-150.0,0.00052426,7]
[321007038,1711743067888,-150.0,0.00052436,7]
[321007039,1711743067897,-150.0,0.00052438,7]
[321007040,1711743067906,-150.0,0.00052441,7]
[321007041,1711743067915,-150.0,0.00052444,7]
[321007042,1711743067923,-150.0,0.00052454,7]
[321007043,1711743067932,-153.8837778,0.00052454,60]
[321007044,1711743067943,-150.0,0.00052479,7]
[321007045,1711743067954,-150.0,0.00052481,7]
[321007046,1711743067963,-150.0,0.00052483,7]
[321007047,1711743067972,-150.0,0.0005249,7]
[321007048,1711743067982,-150.0,0.0005249,7]
[321007049,1711743067991,-150.0,0.00052492,7]
[321007050,1711743068000,-30146.89619145,0.000525,120]
[321007051,1711743068009,-196.332111,0.000525,120]
[321007052,1711743068021,-196.332111,0.000525,120]
[321007053,1711743068030,-324.384414,0.000525,120]
[321007054,1711743068039,-324.384414,0.000525,120]
[321007055,1711743068048,-151.0,0.000525,120]
[321007056,1711743068056,-151.0,0.000525,30]
[321007057,1711743068065,-151.0,0.000525,120]
[321007058,1711743068073,-150.0,0.000525,11]
[321007059,1711743068082,-150.0,0.00052515,7]
[321007060,1711743068092,-624.607561,0.00052522,30]
[321007061,1711743068101,-230.2047,0.00052522,30]
[321007062,1711743068110,-192.347555,0.00052522,30]
[321007063,1711743068120,-150.0,0.00052548,7]
[321007064,1711743068128,-150.0,0.00052569,7]
[321007065,1711743068138,-150.0,0.00052577,7]
[321007066,1711743068147,-1000.0,0.00052584,120]
[321007067,1711743068156,-150.0,0.00052597,7]
[321007068,1711743068165,-150.0,0.000526,120]
[321007069,1711743068174,-500.0,0.00052602,120]
[321007070,1711743068184,-500.0,0.00052602,120]
[321007071,1711743068193,-500.0,0.00052602,120]
[321007072,1711743068202,-500.0,0.00052602,120]
[321007073,1711743068212,-500.0,0.00052602,120]
[321007074,1711743068222,-500.0,0.00052602,120]
[321007075,1711743068231,-500.0,0.00052602,120]
[321007076,1711743068241,-500.0,0.00052602,120]
[321007077,1711743068251,-500.0,0.00052602,120]
[321007078,1711743068260,-500.0,0.00052602,120]
[321007079,1711743068269,-500.0,0.00052602,120]
[321007080,1711743068279,-500.0,0.00052602,120]
[321007081,1711743068288,-500.0,0.00052602,120]
[321007082,1711743068297,-530.14707634,0.00052602,120]
[321007083,1711743068307,-500.0,0.00052602,120]
[321007084,1711743068316,-426.0428714,0.00052602,120]
[321007085,1711743068326,-500.0,0.00052602,120]
[321007086,1711743068335,-529.68252939,0.00052602,120]
[321007087,1711743068345,-500.0,0.00052602,120]
[321007088,1711743068354,-500.0,0.00052602,120]
[321007089,1711743068363,-500.0,0.00052602,120]
[321007090,1711743068372,-500.0,0.00052602,120]
[321007091,1711743068382,-500.0,0.00052602,120]
[321007092,1711743068391,-558.78938712,0.00052602,120]
[321007093,1711743068400,-500.0,0.00052602,120]
[321007094,1711743068409,-500.0,0.00052602,15]
[321007095,1711743068418,-500.0,0.00052602,120]
[321007096,1711743068428,-500.0,0.00052602,120]
[321007097,1711743068439,-500.0,0.00052602,120]
[321007098,1711743068448,-500.0,0.00052602,120]
[321007099,1711743068458,-500.0,0.00052602,120]
[321007100,1711743068467,-500.0,0.00052602,120]
[321007101,1711743068477,-500.0,0.00052602,120]
[321007102,1711743068486,-500.0,0.00052602,120]
[321007103,1711743068495,-500.0,0.00052602,120]
[321007104,1711743068504,-500.0,0.00052602,120]
[321007105,1711743068514,-500.0,0.00052602,120]
[321007106,1711743068523,-500.0,0.00052602,120]
[321007107,1711743068533,-500.0,0.00052602,120]
[321007108,1711743068542,-500.0,0.00052602,120]
[321007109,1711743068551,-500.0,0.00052602,120]
[321007110,1711743068560,-500.0,0.00052602,120]
[321007111,1711743068573,-500.0,0.00052602,120]
[321007112,1711743068582,-500.0,0.00052602,120]
[321007113,1711743068591,-500.0,0.00052602,120]
[321007114,1711743068600,-500.0,0.00052602,120]
[321007115,1711743068610,-500.0,0.00052602,120]
[321007116,1711743068619,-500.0,0.00052602,120]
[321007117,1711743068628,-500.0,0.00052602,120]
[321007118,1711743068637,-500.0,0.00052602,120]
[321007119,1711743068646,-500.0,0.00052602,120]
[321007120,1711743068655,-500.0,0.00052602,120]
[321007121,1711743068664,-500.0,0.00052602,120]
[321007122,1711743068673,-500.0,0.00052602,120]
[321007123,1711743068684,-500.0,0.00052602,120]
[321007124,1711743068693,-500.0,0.00052602,120]
[321007125,1711743068703,-500.0,0.00052602,120]
[321007126,1711743068713,-500.0,0.00052602,120]
[321007127,1711743068722,-500.0,0.00052602,120]
[321007128,1711743068731,-500.0,0.00052602,120]
[321007129,1711743068740,-280.8650767,0.00052602,120]
[321007130,1711743068749,-500.0,0.00052602,120]
[321007131,1711743068759,-500.0,0.00052602,120]
[321007132,1711743068768,-500.0,0.00052602,120]
[321007133,1711743068777,-500.0,0.00052602,120]
[321007134,1711743068786,-500.0,0.00052602,120]
[321007135,1711743068796,-434.1414871,0.00052602,120]
[321007136,1711743068805,-500.0,0.00052602,120]
[321007137,1711743068814,-500.0,0.00052602,120]
[321007138,1711743068823,-500.0,0.00052602,120]
[321007139,1711743068832,-500.0,0.00052602,120]
[321007140,1711743068843,-525.04838931,0.00052602,120]
[321007141,1711743068853,-500.0,0.00052602,120]
[321007142,1711743068862,-500.0,0.00052602,120]
[321007143,1711743068871,-500.0,0.00052602,120]
[321007144,1711743068881,-500.0,0.00052602,120]
[321007145,1711743068890,-500.0,0.00052602,120]